fUST/lending_fUST_20251225
["ID","MTS","AMOUNT","RATE_DAILY","PERIOD"]
[399674903,1766605836013,-153.0,0.00013727,2]
[399674904,1766605836023,-1000.0,0.00013821,2]
[399674905,1766605836033,-1000.0,0.00013821,2]
[399674906,1766605836047,-301.67016359,0.00013821,2]
[399674907,1766605836056,-1000.0,0.00013821,2]
[399674908,1766605836067,-1000.0,0.00013821,2]
[399674909,1766605836077,-548.91149466,0.00013821,2]
[399674910,1766605836087,-1000.0,0.00013821,2]
[399674911,1766605836099,-1000.0,0.00013821,2]
[399674912,1766605836108,-764.03106154,0.00013821,2]
[399674913,1766605836117,-313.8336355,0.00013821,2]
[399674934,1766605838193,-1683.516398,5.879e-05,2]
[399674945,1766605838305,-3316.483602,5.879e-05,2]
[399674948,1766605838318,-420.23192091,0.00013273,2]
[399674950,1766605838328,-500.0,0.00013699,2]
[399674952,1766605838339,-500.0,0.00013699,2]
[399674954,1766605838349,-500.0,0.00013699,2]
[399674956,1766605838360,-500.0,0.00013699,2]
[399674958,1766605838369,-686.1663645,0.00013821,2]
[399674960,1766605838379,-1000.0,0.00013821,2]
[399674962,1766605838388,-1000.0,0.00013821,2]
[399674963,1766605838398,-746.26443429,0.00013821,2]
[399674965,1766605838408,-1000.0,0.00013821,2]
[399674967,1766605838418,-1000.0,0.00013821,2]
[399674969,1766605838428,-1000.0,0.00013821,2]
[399674972,1766605838438,-151.0,0.00013821,2]
[399674974,1766605838448,-151.0,0.00013821,2]
[399674976,1766605838458,-201.674738,0.00013821,2]
[399674978,1766605838468,-201.674738,0.00013821,2]
[399674980,1766605838478,-201.674738,0.00013821,2]
[399674982,1766605838488,-452.46699,0.00013821,2]
[399674984,1766605838499,-452.46699,0.00013821,2]
[399674986,1766605838509,-452.46699,0.00013821,2]
[399674988,1766605838519,-452.46699,0.00013821,2]
[399674990,1766605838531,-247.827779,0.00013821,2]
[399674992,1766605838541,-247.827779,0.00013821,2]
[399674994,1766605838552,-247.827779,0.00013821,2]
[399674996,1766605838562,-247.827779,0.00013821,2]
[399674998,1766605838572,-157.450867,0.00013821,2]
[399674999,1766605838588,-157.450867,0.00013821,2]
[399675001,1766605838599,-157.450867,0.00013821,2]
[399675003,1766605838609,-157.450867,0.00013821,2]
[399675006,1766605838620,-151.0,0.00013821,2]
[399675008,1766605838630,-151.0,0.00013821,2]
[399675010,1766605838641,-151.0,0.00013821,2]
[399675012,1766605838651,-151.0,0.00013821,2]
[399675014,1766605838660,-151.0,0.00013821,2]
[399675015,1766605838671,-151.0,0.00013821,2]
[399675017,1766605838682,-151.0,0.00013821,2]
[399675019,1766605838691,-315.255198,0.00013821,2]
[399675021,1766605838701,-315.255198,0.00013821,2]
[399675023,1766605838711,-315.255198,0.00013821,2]
[399675025,1766605838721,-315.255198,0.00013821,2]
[399675027,1766605838731,-315.255198,0.00013821,2]
[399675029,1766605838741,-315.255198,0.00013821,2]
[399675031,1766605838754,-315.255198,0.00013821,2]
[399675033,1766605838764,-315.255198,0.00013821,2]
[399675035,1766605838775,-151.0,0.00013821,2]
[399675038,1766605838787,-151.0,0.00013821,2]
[399675040,1766605838797,-151.0,0.00013821,2]
[399675041,1766605838807,-151.0,0.00013821,2]
[399675043,1766605838818,-255.768281,0.00013821,2]
[399675046,1766605838828,-255.768281,0.00013821,2]
[399675047,1766605838838,-255.768281,0.00013821,2]
[399675049,1766605838848,-255.768281,0.00013821,2]
[399675051,1766605838859,-151.0,0.00013821,2]
[399675053,1766605838869,-418.982386,0.00013821,2]
[399675056,1766605838880,-151.0,0.00013821,2]
[399675058,1766605838890,-418.982386,0.00013821,2]
[399675060,1766605838899,-151.0,0.00013821,2]
[399675062,1766605838909,-418.982386,0.00013821,2]
[399675063,1766605838919,-151.0,0.00013821,2]
[399675065,1766605838928,-418.982386,0.00013821,2]
[399675068,1766605838939,-507.191064,0.00013821,2]
[399675069,1766605838949,-507.191064,0.00013821,2]
[399675072,1766605838959,-507.191064,0.00013821,2]
[399675073,1766605838968,-507.191064,0.00013821,2]
[399675075,1766605838978,-151.0,0.00013821,2]
[399675077,1766605838987,-151.0,0.00013821,2]
[399675079,1766605838998,-151.0,0.00013821,2]
[399675082,1766605839009,-151.0,0.00013821,2]
[399675083,1766605839018,-151.0,0.00013821,2]
[399675085,1766605839029,-151.0,0.00013821,2]
[399675087,1766605839039,-151.0,0.00013821,2]
[399675089,1766605839050,-1416.229851,0.00013821,2]
[399675091,1766605839061,-289.281339,0.00013821,2]
[399675093,1766605839071,-1416.229851,0.00013821,2]
[399675095,1766605839081,-289.281339,0.00013821,2]
[399675097,1766605839091,-1416.229851,0.00013821,2]
[399675099,1766605839101,-289.281339,0.00013821,2]
[399675101,1766605839110,-1416.229851,0.00013821,2]
[399675103,1766605839120,-289.281339,0.00013821,2]
[399675106,1766605839132,-1037.193811,0.00013821,2]
[399675108,1766605839142,-1037.193811,0.00013821,2]
[399675109,1766605839151,-1037.193811,0.00013821,2]
[399675111,1766605839160,-1037.193811,0.00013821,2]
[399675114,1766605839170,-151.0,0.00013821,2]
[399675115,1766605839179,-151.0,0.00013821,2]
[399675117,1766605839189,-1033.086896,0.00013821,2]
[399675119,1766605839198,-1033.086896,0.00013821,2]
[399675121,1766605839208,-1033.086896,0.00013821,2]
[399675123,1766605839217,-1033.086896,0.00013821,2]
[399675125,1766605839227,-500.71941111,0.0001384,2]
[399675127,1766605839236,-345.0,0.00013855,2]
[399675129,1766605839245,-298.20018974,0.00013855,2]
[399675131,1766605839255,-151.0,0.00013855,2]
[399675133,1766605839264,-151.0,0.00013855,2]
[399675135,1766605839274,-151.0,0.00013855,2]
[399675137,1766605839284,-151.0,0.00013855,2]
[399675139,1766605839293,-151.0,0.00013855,2]
[399675141,1766605839302,-151.0,0.00013855,2]
[399675143,1766605839311,-1416.229851,0.00013855,2]
[399675145,1766605839320,-289.281339,0.00013855,2]
[399675147,1766605839329,-1416.229851,0.00013855,2]
[399675149,1766605839339,-289.281339,0.00013855,2]
[399675151,1766605839348,-1416.229851,0.00013855,2]
[399675153,1766605839357,-289.281339,0.00013855,2]
[399675155,1766605839366,-1416.229851,0.00013855,2]
[399675157,1766605839376,-289.281339,0.00013855,2]
[399675159,1766605839385,-3844.50732639,0.00013855,2]
[399675161,1766605839394,-5000.0,0.00013855,2]
[399675163,1766605839404,-6738.43261572,0.00013856,2]
[399675165,1766605839413,-151.0,0.0001386,2]
[399675167,1766605839422,-151.0,0.0001386,2]
[399675169,1766605839432,-151.0,0.0001386,2]
[399675171,1766605839441,-151.0,0.0001386,2]
[399675173,1766605839451,-151.0,0.0001386,2]
[399675175,1766605839460,-151.0,0.0001386,2]
[399675177,1766605839469,-151.0,0.0001386,2]
[399675179,1766605839478,-188.209841,0.0001386,2]
[399675181,1766605839487,-188.209841,0.0001386,2]
[399675183,1766605839496,-188.209841,0.0001386,2]
[399675185,1766605839505,-188.209841,0.0001386,2]
[399675187,1766605839514,-188.209841,0.0001386,2]
[399675189,1766605839524,-188.209841,0.0001386,2]
[399675191,1766605839536,-188.209841,0.0001386,2]
[399675193,1766605839547,-188.209841,0.0001386,2]
[399675196,1766605839561,-163.837226,0.0001386,2]
[399675197,1766605839575,-151.0,0.0001386,2]
[399675199,1766605839585,-221.765393,0.0001386,2]
[399675201,1766605839594,-201.674738,0.0001386,2]
[399675203,1766605839604,-201.674738,0.0001386,2]
[399675205,1766605839613,-201.674738,0.0001386,2]
[399675208,1766605839623,-201.674738,0.0001386,2]
[399675210,1766605839632,-201.674738,0.0001386,2]
[399675212,1766605839642,-201.674738,0.0001386,2]
[399675214,1766605839651,-201.674738,0.0001386,2]
[399675216,1766605839661,-452.46699,0.0001386,2]
[399675218,1766605839670,-452.46699,0.0001386,2]
[399675220,1766605839679,-452.46699,0.0001386,2]
[399675222,1766605839688,-452.46699,0.0001386,2]
[399675224,1766605839697,-452.46699,0.0001386,2]
[399675226,1766605839706,-452.46699,0.0001386,2]
[399675228,1766605839715,-452.46699,0.0001386,2]
[399675230,1766605839725,-452.46699,0.0001386,2]
[399675232,1766605839733,-247.827779,0.0001386,2]
[399675234,1766605839743,-247.827779,0.0001386,2]
[399675236,1766605839752,-247.827779,0.0001386,2]
[399675238,1766605839761,-247.827779,0.0001386,2]
[399675240,1766605839771,-247.827779,0.0001386,2]
[399675242,1766605839784,-247.827779,0.0001386,2]
[399675244,1766605839793,-247.827779,0.0001386,2]
[399675246,1766605839802,-247.827782,0.0001386,2]
[399675248,1766605839811,-157.450867,0.0001386,2]
[399675251,1766605839820,-157.450867,0.0001386,2]
[399675254,1766605839829,-157.450867,0.0001386,2]
[399675256,1766605839838,-157.450867,0.0001386,2]
[399675257,1766605839848,-157.450867,0.0001386,2]
[399675259,1766605839858,-157.450867,0.0001386,2]
[399675261,1766605839868,-157.450867,0.0001386,2]
[399675264,1766605839878,-157.450863,0.0001386,2]
[399675265,1766605839887,-151.0,0.0001386,2]
[399675267,1766605839896,-239.334339,0.0001386,2]
[399675269,1766605839905,-151.0,0.0001386,2]
[399675271,1766605839915,-151.0,0.0001386,2]
[399675272,1766605839925,-151.0,0.0001386,2]
[399675273,1766605839934,-315.255198,0.0001386,2]
[399675274,1766605839943,-315.255198,0.0001386,2]
[399675275,1766605839952,-315.255198,0.0001386,2]
[399675276,1766605839961,-315.255191,0.0001386,2]
[399675277,1766605839972,-151.0,0.0001386,2]
[399675278,1766605839981,-151.0,0.0001386,2]
[399675279,1766605839990,-255.768281,0.0001386,2]
[399675280,1766605840000,-255.768281,0.0001386,2]
[399675281,1766605840009,-255.768281,0.0001386,2]
[399675282,1766605840018,-255.768275,0.0001386,2]
[399675283,1766605840028,-418.982386,0.0001386,2]
[399675284,1766605840037,-151.0,0.0001386,2]
[399675285,1766605840051,-418.982386,0.0001386,2]
[399675286,1766605840061,-151.0,0.0001386,2]
[399675287,1766605840070,-418.982386,0.0001386,2]
[399675288,1766605840079,-151.0,0.0001386,2]
[399675289,1766605840090,-418.982396,0.0001386,2]
[399675290,1766605840099,-507.191064,0.0001386,2]
[399675291,1766605840109,-507.191064,0.0001386,2]
[399675292,1766605840118,-507.191064,0.0001386,2]
[399675293,1766605840129,-507.191073,0.0001386,2]
[399675295,1766605840139,-151.0,0.0001386,2]
[399675297,1766605840149,-151.0,0.0001386,2]
[399675299,1766605840158,-151.0,0.0001386,2]
[399675301,1766605840167,-151.0,0.0001386,2]
[399675311,1766605840177,-151.0,0.0001386,2]
[399675313,1766605840262,-151.0,0.0001386,2]
[399675315,1766605840271,-151.0,0.0001386,2]
[399675317,1766605840280,-1416.229851,0.0001386,2]
[399675319,1766605840289,-289.281339,0.0001386,2]
[399675321,1766605840299,-1416.229851,0.0001386,2]
[399675323,1766605840308,-289.281339,0.0001386,2]
[399675325,1766605840318,-1416.229851,0.0001386,2]
[399675327,1766605840327,-289.281339,0.0001386,2]
[399675329,1766605840336,-1416.229857,0.0001386,2]
[399675331,1766605840345,-289.281337,0.0001386,2]
[399675333,1766605840354,-1037.193811,0.0001386,2]
[399675336,1766605840363,-1037.193811,0.0001386,2]
[399675338,1766605840372,-1037.193811,0.0001386,2]
[399675340,1766605840381,-1037.19382,0.0001386,2]
[399675342,1766605840390,-151.0,0.0001386,2]
[399675344,1766605840399,-151.0,0.0001386,2]
[399675346,1766605840408,-1033.086896,0.0001386,2]
[399675348,1766605840417,-1033.086896,0.0001386,2]
[399675350,1766605840426,-1033.086896,0.0001386,2]
[399675352,1766605840436,-1033.086895,0.0001386,2]
[399675354,1766605840445,-9191.2222702,0.0001386,2]
[399675356,1766605840454,-5000.0,0.0001386,2]
[399675358,1766605840463,-5000.0,0.0001386,2]
[399675360,1766605840471,-5000.0,0.0001386,2]
[399675362,1766605840480,-5000.0,0.0001386,2]
[399675364,1766605840489,-310.1925784,0.00013873,2]
[399675366,1766605840498,-153.0,0.00013873,2]
[399675368,1766605840507,-153.0,0.00013873,2]
[399675370,1766605840518,-153.0,0.00013873,2]
[399675372,1766605840526,-319.6925053,0.00013873,2]
[399675374,1766605840536,-153.0,0.00013873,2]
[399675376,1766605840545,-153.0,0.00013873,2]
[399675378,1766605840554,-153.0,0.00013873,2]
[399675380,1766605840563,-751.5551774,0.00013948,2]
[399675382,1766605840572,-600.0,0.00013972,2]
[399675384,1766605840581,-151.0,0.00013972,2]
[399675386,1766605840590,-151.0,0.00013972,2]
[399675388,1766605840599,-291.460119,0.00013972,2]
[399675390,1766605840616,-151.0,0.00013972,2]
[399675392,1766605840625,-163.3933088,0.00013973,2]
[399675394,1766605840639,-200.0,0.00013999,2]
[399675396,1766605840658,-200.0,0.00013999,2]
[399675398,1766605840671,-200.0,0.00013999,2]
[399675400,1766605840680,-8171.03738091,0.00014,2]
[399675462,1766605841249,-151.0,0.00013699,2]
[399675464,1766605841259,-151.0,0.00013699,2]
[399675467,1766605841269,-151.0,0.00013727,2]
[399675469,1766605841278,-1828.96261909,0.00014,2]
[399675471,1766605841288,-150.0,0.00014,2]
[399675472,1766605841297,-151.0,0.00014,2]
[399675474,1766605841306,-151.0,0.00014,2]
[399675477,1766605841315,-249.067044,0.00014,2]
[399675478,1766605841324,-151.0,0.00014,2]
[399675481,1766605841333,-151.0,0.00014,2]
[399675482,1766605841343,-151.0,0.00014,2]
[399675484,1766605841352,-188.209841,0.00014,2]
[399675486,1766605841362,-188.209841,0.00014,2]
[399675488,1766605841372,-188.209841,0.00014,2]
[399675490,1766605841381,-188.209841,0.00014,2]
[399675492,1766605841390,-201.674738,0.00014,2]
[399675494,1766605841399,-201.674743,0.00014,2]
[399675496,1766605841409,-452.46699,0.00014,2]
[399675498,1766605841419,-452.46699,0.00014,2]
[399675500,1766605841429,-452.46699,0.00014,2]
[399675501,1766605841438,-452.466996,0.00014,2]
[399675502,1766605841447,-603.54904795,0.00014,2]
[399675503,1766605841457,-43484.55185659,0.00014,2]
[399675527,1766605843436,-786.138896,0.00013699,2]
[399675529,1766605843445,-544.76004474,0.00013699,2]
[399675531,1766605843456,-241.37885126,0.00013699,2]
[399675534,1766605843466,-786.138896,0.00013699,2]
[399675536,1766605843475,-18.8090694,0.00013699,2]
[399675538,1766605843486,-767.3298266,0.00013699,2]
[399675540,1766605843496,-786.138896,0.00013727,2]
[399675542,1766605843505,-786.138896,0.00013727,2]
[399675543,1766605843513,-187.43117,0.00013821,2]
[399675545,1766605843522,-786.138896,0.00013821,2]
[399675548,1766605843533,-786.138896,0.0001386,2]
[399675550,1766605843543,-31.81224562,0.00014,2]
[399675698,1766605846263,-786.138896,0.00013699,2]
[399675699,1766605846273,-786.138896,0.00013699,2]
[399675700,1766605846283,-150.0,0.00013713,2]
[399675701,1766605846293,-786.138896,0.00013821,2]
[399675702,1766605846303,-786.138896,0.0001386,2]
[399675703,1766605846312,-3350.7980566,0.00014,2]
[399675704,1766605846324,-1773.0,0.00014,2]
[399676103,1766607032277,-1041.66666667,0.00011469,2]
[399676105,1766607032288,-2.11080508,0.00011553,2]
[399676106,1766607032301,-461.90570461,0.00011553,2]
[399676111,1766607032655,-1728.0487289,0.00011553,2]
[399676112,1766607032668,-2807.93476141,0.00011553,2]
[399676113,1766607032679,-583.0,0.00011553,2]
[399676114,1766607032690,-1642.08661493,0.0001167,2]
[399676115,1766607032700,-150.0,0.00011879,2]
[399676116,1766607032710,-8047.9624747,0.00012463,2]
[399676117,1766607032721,-500.0,0.0001253,2]
[399676118,1766607032731,-500.0,0.0001253,2]
[399676119,1766607032741,-500.0,0.0001253,2]
[399676120,1766607032752,-500.0,0.0001253,2]
[399676121,1766607032762,-186.83633666,0.0001253,2]
[399676122,1766607032772,-500.0,0.00013273,2]
[399676123,1766607032782,-500.0,0.00013273,2]
[399676124,1766607032792,-500.0,0.00013273,2]
[399676125,1766607032803,-500.0,0.00013273,2]
[399676126,1766607032813,-500.0,0.00013273,2]
[399676127,1766607032823,-500.0,0.00013273,2]
[399676128,1766607032834,-500.0,0.00013273,2]
[399676129,1766607032843,-500.0,0.00013273,2]
[399676130,1766607032854,-500.0,0.00013273,2]
[399676131,1766607032864,-500.0,0.00013273,2]
[399676132,1766607032874,-500.0,0.00013273,2]
[399676133,1766607032884,-500.0,0.00013273,2]
[399676134,1766607032894,-500.0,0.00013273,2]
[399676135,1766607032904,-500.0,0.00013273,2]
[399676136,1766607032914,-500.0,0.00013273,2]
[399676137,1766607032924,-222.17653573,0.0001331,2]
[399676138,1766607032934,-186.48261709,0.00013473,2]
[399676139,1766607032944,-3843.93418416,0.00013498,2]
[399676140,1766607032954,-600.0,0.00013537,2]
[399676141,1766607032964,-154.221,0.00013573,2]
[399676142,1766607032974,-500.0,0.00013598,2]
[399676143,1766607032984,-500.0,0.00013598,2]
[399676144,1766607032994,-500.0,0.00013598,2]
[399676145,1766607033004,-500.0,0.00013598,2]
[399676146,1766607033014,-500.0,0.00013598,2]
[399676147,1766607033024,-500.0,0.00013598,2]
[399676148,1766607033034,-500.0,0.00013598,2]
[399676149,1766607033044,-500.0,0.00013598,2]
[399676150,1766607033054,-500.0,0.00013598,2]
[399676151,1766607033065,-500.0,0.00013598,2]
[399676152,1766607033075,-177.61702539,0.00013598,2]
[399676153,1766607033086,-500.0,0.00013598,2]
[399676154,1766607033096,-500.0,0.00013598,2]
[399676155,1766607033107,-500.0,0.00013598,2]
[399676156,1766607033117,-500.0,0.00013598,2]
[399676157,1766607033127,-500.0,0.00013598,2]
[399676158,1766607033138,-500.0,0.00013598,2]
[399676159,1766607033148,-500.0,0.00013598,2]
[399676160,1766607033158,-500.0,0.00013598,2]
[399676161,1766607033170,-500.0,0.00013598,2]
[399676162,1766607033180,-200.0,0.00013598,2]
[399676163,1766607033190,-22516.76782357,0.00013599,2]
[399676164,1766607033366,-290.8,0.00013599,2]
[399676165,1766607033382,-319.74,0.00013599,2]
[399676179,1766607038265,-3687.66744814,0.00013599,2]
[399676180,1766607038293,-6458.45730428,0.00013599,2]
[399676181,1766607038305,-3456.86920441,0.00013599,2]
[399676182,1766607038317,-711.23091884,0.00013599,2]
[399676183,1766607038349,-4382.5499789,0.00013599,2]
[399676201,1766607040372,-12299.13298245,0.00013599,2]
[399676208,1766607040426,-658.05590408,0.00013599,2]
[399676210,1766607040437,-11008.79469041,0.00013599,2]
[399676212,1766607040450,-889.42,0.00013599,2]
[399676500,1766607043644,-315.98676429,0.00013599,2]
[399676549,1766607046412,-1768.6,0.00013599,2]
[399676853,1766608232364,-1200.0,0.0001239,2]
[399676854,1766608232375,-5000.0,0.00012391,2]
[399676855,1766608232385,-595.0,0.00012391,2]
[399676856,1766608232395,-150.0,0.00012549,2]
[399676857,1766608232405,-279.56,0.000129,2]
[399676858,1766608232415,-985.00869324,0.00013072,2]
[399676859,1766608232425,-985.00869321,0.00013097,2]
[399676860,1766608232435,-985.00869321,0.00013123,2]
[399676861,1766608232445,-300.0,0.00013146,2]
[399676862,1766608232455,-300.0,0.00013147,2]
[399676863,1766608232465,-300.0,0.00013147,2]
[399676864,1766608232475,-300.0,0.00013147,2]
[399676865,1766608232485,-985.00869321,0.00013148,2]
[399676866,1766608232510,-550.31813362,0.00013162,2]
[399676867,1766608232520,-43127.05939709,0.00013163,2]
[399676868,1766608232533,-2653.06756959,0.00013163,2]
[399676911,1766608238528,-1586.21195227,0.00013163,2]
[399676914,1766608238541,-2352.00076887,0.00013163,2]
[399676916,1766608238585,-281.66031218,0.00013163,2]
[399676917,1766608238595,-154.221,0.00013164,2]
[399676918,1766608238604,-11.06372256,0.00013172,2]
[399676919,1766608238641,-488.93627744,0.00013172,2]
[399676920,1766608238651,-500.0,0.00013172,2]
[399676921,1766608238661,-500.0,0.00013172,2]
[399676922,1766608238671,-500.0,0.00013172,2]
[399676923,1766608238680,-500.0,0.00013172,2]
[399676924,1766608238690,-500.0,0.00013172,2]
[399676925,1766608238700,-500.0,0.00013172,2]
[399676926,1766608238710,-500.0,0.00013172,2]
[399676927,1766608238719,-371.71824064,0.00013172,2]
[399676928,1766608238730,-500.0,0.00013172,2]
[399676929,1766608238742,-500.0,0.00013172,2]
[399676930,1766608238753,-500.0,0.00013172,2]
[399676931,1766608238763,-500.0,0.00013172,2]
[399676932,1766608238772,-500.0,0.00013172,2]
[399676933,1766608238783,-196418.90271222,0.00013173,2]
[399676934,1766608238792,-1858.34652109,0.00013176,2]
[399676935,1766608238802,-500.0,0.00013242,2]
[399676936,1766608238813,-500.0,0.00013242,2]
[399676937,1766608238822,-500.0,0.00013242,2]
[399676938,1766608238832,-500.0,0.00013242,2]
[399676939,1766608238841,-500.0,0.00013242,2]
[399676940,1766608238851,-500.0,0.00013242,2]
[399676941,1766608238861,-500.0,0.00013242,2]
[399676943,1766608238870,-500.0,0.00013242,2]
[399676945,1766608238880,-500.0,0.00013242,2]
[399676947,1766608238890,-500.0,0.00013242,2]
[399676949,1766608238899,-390.71439394,0.00013242,2]
[399676951,1766608238909,-500.0,0.00013273,2]
[399676953,1766608238918,-500.0,0.00013273,2]
[399676955,1766608238928,-197.09357183,0.00013273,2]
[399677126,1766608240589,-262.0624995,0.00013071,2]
[399677137,1766608240698,-374.08989249,0.00013071,2]
[399677140,1766608240713,-1059.01307684,0.00013071,2]
[399677206,1766608243807,-4205.40000002,0.00013071,2]
[399677207,1766608243821,-1235.17087944,0.00013071,2]
[399677224,1766608246745,-569.37999998,0.00013071,2]
[399677225,1766608246759,-680.90757339,0.00013071,2]
[399677226,1766608246772,-1909.91231182,0.00013071,2]
[399677227,1766608246802,-1673.08424051,0.00013071,2]
[399677228,1766608246817,-7055.12175463,0.00013071,2]
[399677229,1766608246913,-20503.01364468,0.00013071,2]
[399677529,1766609431582,-1200.0,5.677e-05,2]
[399677531,1766609431592,-4636.67574529,5.678e-05,2]
[399677533,1766609431602,-502.0,5.678e-05,2]
[399677535,1766609431612,-150.0,5.707e-05,2]
[399677537,1766609431621,-5000.0,5.735e-05,2]
[399677539,1766609431632,-300.0,5.849e-05,2]
[399677541,1766609431641,-300.0,5.849e-05,2]
[399677543,1766609431650,-300.0,5.849e-05,2]
[399677544,1766609431659,-300.0,5.849e-05,2]
[399677547,1766609431669,-150.0,6.284e-05,2]
[399677549,1766609431679,-177.0,7.707e-05,2]
[399677551,1766609431688,-500.0,7.939e-05,2]
[399677553,1766609431698,-500.0,7.939e-05,2]
[399677555,1766609431707,-500.0,7.939e-05,2]
[399677557,1766609431716,-500.0,7.939e-05,2]
[399677559,1766609431725,-500.0,7.939e-05,2]
[399677561,1766609431736,-500.0,7.939e-05,2]
[399677563,1766609431745,-500.0,7.939e-05,2]
[399677565,1766609431755,-500.0,7.939e-05,2]
[399677567,1766609431764,-500.0,7.939e-05,2]
[399677569,1766609431774,-500.0,7.939e-05,2]
[399677571,1766609431783,-500.0,7.939e-05,2]
[399677573,1766609431793,-500.0,7.939e-05,2]
[399677575,1766609431803,-500.0,7.939e-05,2]
[399677577,1766609431812,-388.58297359,7.939e-05,2]
[399677579,1766609431822,-500.0,7.939e-05,2]
[399677581,1766609431831,-500.0,7.939e-05,2]
[399677583,1766609431840,-500.0,7.939e-05,2]
[399677585,1766609431850,-434.55624233,7.939e-05,2]
[399677587,1766609431859,-500.0,7.939e-05,2]
[399677589,1766609431869,-240.97856789,7.939e-05,2]
[399677591,1766609431878,-422.49657428,7.939e-05,2]
[399677593,1766609431887,-500.0,7.939e-05,2]
[399677595,1766609431897,-500.0,7.939e-05,2]
[399677596,1766609431906,-500.0,7.939e-05,2]
[399677598,1766609431915,-500.0,7.939e-05,2]
[399677600,1766609431925,-500.0,7.939e-05,2]
[399677602,1766609431935,-500.0,7.939e-05,2]
[399677604,1766609431945,-216.47264464,7.939e-05,2]
[399677606,1766609431955,-154.28699706,7.939e-05,2]
[399677608,1766609431964,-206.79706297,7.939e-05,2]
[399677610,1766609431977,-293.20293703,7.939e-05,2]
[399677612,1766609431986,-500.0,7.939e-05,2]
[399677614,1766609431995,-120.48081674,7.939e-05,2]
[399677617,1766609432007,-379.51918326,7.939e-05,2]
[399677619,1766609432016,-250.0,7.939e-05,2]
[399677620,1766609432025,-500.0,7.939e-05,2]
[399677622,1766609432035,-99.15639137,7.94e-05,2]
[399677625,1766609432048,-512.65011074,7.94e-05,2]
[399677680,1766609437681,-1683.85927211,7.94e-05,2]
[399677687,1766609437735,-9891.4748693,7.94e-05,2]
[399677689,1766609437747,-509.23438404,7.94e-05,2]
[399677695,1766609437792,-1583.79013717,7.94e-05,2]
[399677697,1766609437804,-27589.51940752,7.94e-05,2]
[399677753,1766609439877,-530.08096586,7.94e-05,2]
[399677755,1766609439897,-197.00173865,7.94e-05,2]
[399677757,1766609439918,-197.00173864,9.38e-05,2]
[399677759,1766609439928,-204.0,9.706e-05,2]
[399677760,1766609439938,-197.00173864,0.0001072,2]
[399677762,1766609439948,-500.0,0.00011706,2]
[399677763,1766609439957,-500.0,0.00011706,2]
[399677764,1766609439967,-449.56431147,0.00011706,2]
[399677765,1766609439977,-500.0,0.00011706,2]
[399677767,1766609439987,-500.0,0.00011706,2]
[399677768,1766609439997,-500.0,0.00011706,2]
[399677769,1766609440007,-500.0,0.00011706,2]
[399677770,1766609440017,-500.0,0.00011706,2]
[399677771,1766609440027,-500.0,0.00011706,2]
[399677772,1766609440037,-252.86255104,0.00011706,2]
[399677773,1766609440051,-247.13744896,0.00011706,2]
[399677774,1766609440061,-16.98838467,0.00011707,2]
[399677798,1766609443019,-214.01161533,0.00011707,2]
[399677800,1766609443028,-197.00173864,0.00012159,2]
[399677801,1766609443038,-153.0,0.00012678,2]
[399677802,1766609443048,-153.0,0.00012678,2]
[399677803,1766609443057,-153.0,0.00012778,2]
[399677804,1766609443067,-153.0,0.00012778,2]
[399677805,1766609443076,-153.0,0.00012878,2]
[399677806,1766609443086,-153.0,0.00012878,2]
[399677807,1766609443096,-3363.44241114,0.000129,2]
[399677808,1766609443105,-194.10439556,0.000129,2]